[Event "Titled Tuesday Blitz November 15 Late 2022"]
[White "Danielyan, Vahe"]
[Black "Romero Ruscalleda, Josep"]
[WhiteFideId "13304828"]
[BlackFideId "2231859"]
[WhiteElo "2423"]
[BlackElo "2183"]
[Result "1-0"]
[Round "01"]
[TimeControl "180+1"]
[Date "2022.11.16"]
[WhiteClock "0:02:16"]
[BlackClock "0:01:10"]

1. e4 {[%clk 0:03:00]}  g6 {[%clk 0:03:00]} 2. d4 {[%clk 0:02:59]}  Bg7 {[%clk 0:03:01]} 3. Nc3 {[%clk 0:02:59]}  d6 {[%clk 0:03:01]} 4. Be3 {[%clk 0:03:00]}  a6 {[%clk 0:03:01]} 5. Nf3 {[%clk 0:03:00]}  b5 {[%clk 0:03:01]} 6. Be2 {[%clk 0:02:57]}  Bb7 {[%clk 0:03:01]} 7. a3 {[%clk 0:02:57]}  Nd7 {[%clk 0:03:00]} 8. O-O {[%clk 0:02:56]}  c5 {[%clk 0:02:57]} 9. dxc5 {[%clk 0:02:41]}  Nxc5 {[%clk 0:02:57]} 10. e5 {[%clk 0:02:39]}  Ne4 {[%clk 0:02:47]} 11. Nxe4 {[%clk 0:02:37]}  Bxe4 {[%clk 0:02:46]} 12. exd6 {[%clk 0:02:38]}  Qxd6 {[%clk 0:02:42]} 13. Qxd6 {[%clk 0:02:37]}  exd6 {[%clk 0:02:42]} 14. Bd4 {[%clk 0:02:36]}  Nf6 {[%clk 0:02:38]} 15. c3 {[%clk 0:02:27]}  O-O {[%clk 0:02:37]} 16. Nd2 {[%clk 0:02:27]}  Bb7 {[%clk 0:02:33]} 17. a4 {[%clk 0:02:26]}  bxa4 {[%clk 0:02:27]} 18. Rxa4 {[%clk 0:02:27]}  Rfe8 {[%clk 0:02:24]} 19. Bd3 {[%clk 0:02:26]}  Nd5 {[%clk 0:02:14]} 20. g3 {[%clk 0:02:27]}  Bxd4 {[%clk 0:02:11]} 21. Rxd4 {[%clk 0:02:27]}  Rad8 {[%clk 0:02:02]} 22. Be4 {[%clk 0:02:26]}  Rxe4 {[%clk 0:01:37]} 23. Nxe4 {[%clk 0:02:26]}  Kg7 {[%clk 0:01:34]} 24. Rfd1 {[%clk 0:02:25]}  Nb6 {[%clk 0:01:32]} 25. Nxd6 {[%clk 0:02:24]}  Bf3 {[%clk 0:01:31]} 26. Nf5+ {[%clk 0:02:22]}  gxf5 {[%clk 0:01:30]} 27. Rxd8 {[%clk 0:02:23]}  Nc4 {[%clk 0:01:31]} 28. b4 {[%clk 0:02:20]}  Ne5 {[%clk 0:01:25]} 29. Re1 {[%clk 0:02:18]}  Be4 {[%clk 0:01:20]} 30. Re3 {[%clk 0:02:13]}  Nf3+ {[%clk 0:01:17]} 31. Rxf3 {[%clk 0:02:12]}  Bxf3 {[%clk 0:01:17]} 32. c4 {[%clk 0:02:13]}  Kf6 {[%clk 0:01:16]} 33. c5 {[%clk 0:02:13]}  Ke7 {[%clk 0:01:16]} 34. Rd6 {[%clk 0:02:13]}  Be2 {[%clk 0:01:13]} 35. f4 {[%clk 0:02:11]}  Bb5 {[%clk 0:01:12]} 36. Kf2 {[%clk 0:02:12]}  f6 {[%clk 0:01:11]} 37. Ke3 {[%clk 0:02:12]}  Bd7 {[%clk 0:01:11]} 38. Kd4 {[%clk 0:02:13]}  Be6 {[%clk 0:01:10]} 39. Rxa6 {[%clk 0:02:13]}  Bd7 {[%clk 0:01:10]} 40. Ra7 {[%clk 0:02:14]}  Kd8 {[%clk 0:01:10]} 41. Rxd7+ {[%clk 0:02:15]}  Kxd7 {[%clk 0:01:10]} 42. Kd5 {[%clk 0:02:16]} 1-0


[Site "https://www.chess.com"]

[Event "Titled Tuesday Blitz November 15 Late 2022"]
[White "Deac, Bogdan-Daniel"]
[Black "Koutlas, Nikolaos"]
[WhiteFideId "1226380"]
[BlackFideId "25827138"]
[WhiteElo "2648"]
[BlackElo "2167"]
[Result "0-1"]
[Round "01"]
[TimeControl "180+1"]
[Date "2022.11.15"]
[WhiteClock "0:00:04"]
[BlackClock "0:00:44"]

1. Nf3 {[%clk 0:03:00]}  Nf6 {[%clk 0:03:00]} 2. b3 {[%clk 0:02:58]}  g6 {[%clk 0:02:59]} 3. Bb2 {[%clk 0:02:58]}  Bg7 {[%clk 0:03:00]} 4. g3 {[%clk 0:02:58]}  O-O {[%clk 0:03:01]} 5. Bg2 {[%clk 0:02:58]}  c5 {[%clk 0:03:01]} 6. c4 {[%clk 0:02:58]}  Nc6 {[%clk 0:03:02]} 7. O-O {[%clk 0:02:58]}  b6 {[%clk 0:03:00]} 8. e3 {[%clk 0:02:52]}  Bb7 {[%clk 0:02:59]} 9. d4 {[%clk 0:02:48]}  cxd4 {[%clk 0:02:59]} 10. exd4 {[%clk 0:02:49]}  d5 {[%clk 0:02:59]} 11. Na3 {[%clk 0:02:49]}  Rc8 {[%clk 0:02:55]} 12. Qe2 {[%clk 0:02:48]}  dxc4 {[%clk 0:02:50]} 13. bxc4 {[%clk 0:02:48]}  Na5 {[%clk 0:02:44]} 14. Rac1 {[%clk 0:02:45]}  Qd7 {[%clk 0:02:29]} 15. Ne5 {[%clk 0:02:33]}  Qa4 {[%clk 0:02:26]} 16. Bxb7 {[%clk 0:02:19]}  Nxb7 {[%clk 0:02:26]} 17. Nb5 {[%clk 0:02:09]}  Nd6 {[%clk 0:02:20]} 18. Nc3 {[%clk 0:01:58]}  Qb4 {[%clk 0:02:11]} 19. Nd5 {[%clk 0:01:27]}  Nxd5 {[%clk 0:02:06]} 20. cxd5 {[%clk 0:01:28]}  Rfe8 {[%clk 0:01:40]} 21. Nc6 {[%clk 0:01:00]}  Qa4 {[%clk 0:01:33]} 22. Qf3 {[%clk 0:00:32]}  Qxa2 {[%clk 0:01:15]} 23. Ba3 {[%clk 0:00:28]}  Nf5 {[%clk 0:01:15]} 24. Rfd1 {[%clk 0:00:15]}  Bf6 {[%clk 0:00:59]} 25. g4 {[%clk 0:00:12]}  Nh4 {[%clk 0:00:52]} 26. Qd3 {[%clk 0:00:12]}  Qxd5 {[%clk 0:00:49]} 27. Nxe7+ {[%clk 0:00:04]}  Bxe7 {[%clk 0:00:45]} 28. Rxc8 {[%clk 0:00:04]}  Qg2# {[%clk 0:00:44]} 0-1


[Site "https://www.chess.com"]

[Event "Titled Tuesday Blitz November 15 Late 2022"]
[White "Fedoseev, Vladimir"]
[Black "Kumala, Aleksander"]
[WhiteFideId "24130737"]
[BlackFideId "1141880"]
[WhiteElo "2726"]
[BlackElo "2269"]
[Result "1-0"]
[Round "01"]
[TimeControl "180+1"]
[Date "2022.11.15"]
[WhiteClock "0:01:16"]
[BlackClock "0:00:09"]

1. e4 {[%clk 0:02:59]}  e5 {[%clk 0:02:59]} 2. Nf3 {[%clk 0:02:59]}  Nc6 {[%clk 0:02:58]} 3. Bc4 {[%clk 0:02:58]}  Nf6 {[%clk 0:02:58]} 4. d3 {[%clk 0:02:57]}  Bc5 {[%clk 0:02:57]} 5. h3 {[%clk 0:02:55]}  d6 {[%clk 0:02:54]} 6. a4 {[%clk 0:02:52]}  a6 {[%clk 0:02:54]} 7. O-O {[%clk 0:02:51]}  O-O {[%clk 0:02:54]} 8. Nc3 {[%clk 0:02:51]}  h6 {[%clk 0:02:52]} 9. Be3 {[%clk 0:02:50]}  Ba7 {[%clk 0:02:50]} 10. Qd2 {[%clk 0:02:48]}  Kh7 {[%clk 0:02:38]} 11. Kh2 {[%clk 0:02:38]}  Be6 {[%clk 0:02:37]} 12. b3 {[%clk 0:02:35]}  Qd7 {[%clk 0:02:34]} 13. Nh4 {[%clk 0:02:27]}  Nd4 {[%clk 0:02:30]} 14. f4 {[%clk 0:02:25]}  exf4 {[%clk 0:02:20]} 15. Rxf4 {[%clk 0:02:22]}  Nh5 {[%clk 0:02:16]} 16. Rf2 {[%clk 0:02:20]}  Qe7 {[%clk 0:01:44]} 17. g3 {[%clk 0:02:03]}  Bxc4 {[%clk 0:01:20]} 18. bxc4 {[%clk 0:02:01]}  Nxc2 {[%clk 0:01:12]} 19. Nf5 {[%clk 0:01:44]}  Qe5 {[%clk 0:01:10]} 20. d4 {[%clk 0:01:40]}  Qe6 {[%clk 0:00:37]} 21. Qxc2 {[%clk 0:01:38]}  g6 {[%clk 0:00:38]} 22. Nxh6 {[%clk 0:01:36]}  Qxc4 {[%clk 0:00:36]} 23. Raf1 {[%clk 0:01:28]}  Bxd4 {[%clk 0:00:34]} 24. Bxd4 {[%clk 0:01:24]}  Qxd4 {[%clk 0:00:33]} 25. Nxf7 {[%clk 0:01:25]}  Kg7 {[%clk 0:00:25]} 26. Nd5 {[%clk 0:01:24]}  c6 {[%clk 0:00:20]} 27. Nc7 {[%clk 0:01:24]}  Rae8 {[%clk 0:00:13]} 28. Ng5 {[%clk 0:01:18]}  Rxf2+ {[%clk 0:00:11]} 29. Rxf2 {[%clk 0:01:16]}  Qe5 {[%clk 0:00:10]} 30. Nxe8+ {[%clk 0:01:16]}  Kh6 {[%clk 0:00:09]} 31. Nf7+ {[%clk 0:01:16]} 1-0


[Site "https://www.chess.com"]

[Event "Titled Tuesday Blitz November 15 Late 2022"]
[White "Fernandez De La Vara, Arnaldo"]
[Black "Suich, Peter D"]
[WhiteFideId "3518388"]
[BlackFideId "2050366"]
[WhiteElo "2387"]
[BlackElo "2375"]
[Result "1-0"]
[Round "01"]
[TimeControl "180+1"]
[Date "2022.11.16"]
[WhiteClock "0:00:59"]
[BlackClock "0:01:37"]

1. Nf3 {[%clk 0:03:00]}  d5 {[%clk 0:03:00]} 2. g3 {[%clk 0:03:00]}  Nf6 {[%clk 0:03:00]} 3. Bg2 {[%clk 0:03:01]}  g6 {[%clk 0:03:01]} 4. b3 {[%clk 0:03:01]}  Bg7 {[%clk 0:03:01]} 5. Bb2 {[%clk 0:03:01]}  O-O {[%clk 0:03:01]} 6. c4 {[%clk 0:03:02]}  c6 {[%clk 0:03:00]} 7. O-O {[%clk 0:03:01]}  Be6 {[%clk 0:02:56]} 8. d3 {[%clk 0:02:58]}  a5 {[%clk 0:02:56]} 9. Nc3 {[%clk 0:02:57]}  Na6 {[%clk 0:02:55]} 10. Qd2 {[%clk 0:02:32]}  h6 {[%clk 0:02:46]} 11. Rfd1 {[%clk 0:02:32]}  Qc8 {[%clk 0:02:44]} 12. Rac1 {[%clk 0:02:31]}  Rd8 {[%clk 0:02:43]} 13. Na4 {[%clk 0:02:06]}  Qc7 {[%clk 0:02:37]} 14. Be5 {[%clk 0:02:05]}  Qd7 {[%clk 0:02:32]} 15. Nb6 {[%clk 0:02:04]}  Qe8 {[%clk 0:02:33]} 16. Nxa8 {[%clk 0:02:04]}  Rxa8 {[%clk 0:02:34]} 17. Qxa5 {[%clk 0:02:03]}  dxc4 {[%clk 0:02:27]} 18. bxc4 {[%clk 0:01:57]}  h5 {[%clk 0:02:17]} 19. Rb1 {[%clk 0:01:52]}  Qc8 {[%clk 0:02:14]} 20. Bxf6 {[%clk 0:01:28]}  Bxf6 {[%clk 0:02:10]} 21. Qb6 {[%clk 0:01:28]}  Rb8 {[%clk 0:02:06]} 22. Nd4 {[%clk 0:01:24]}  Bd7 {[%clk 0:01:59]} 23. Nb3 {[%clk 0:01:24]}  Nc7 {[%clk 0:01:55]} 24. Nc5 {[%clk 0:01:21]}  Na8 {[%clk 0:01:55]} 25. Qa7 {[%clk 0:01:17]}  Be8 {[%clk 0:01:48]} 26. Rxb7 {[%clk 0:01:10]}  Rxb7 {[%clk 0:01:46]} 27. Qxb7 {[%clk 0:01:11]}  Qd8 {[%clk 0:01:46]} 28. Bxc6 {[%clk 0:01:06]}  Bxc6 {[%clk 0:01:38]} 29. Qxc6 {[%clk 0:01:07]}  Nb6 {[%clk 0:01:37]} 30. Rb1 {[%clk 0:00:59]} 1-0


[Site "https://www.chess.com"]

[Event "Titled Tuesday Blitz November 15 Late 2022"]
[White "Figorito, Nick"]
[Black "Mgeladze, Tamaz"]
[WhiteFideId "30923689"]
[BlackFideId "13601202"]
[WhiteElo "2359"]
[BlackElo "2288"]
[Result "0-1"]
[Round "01"]
[TimeControl "180+1"]
[Date "2022.11.16"]
[WhiteClock "0:00:06"]
[BlackClock "0:00:15"]

1. Nf3 {[%clk 0:03:00]}  Nf6 {[%clk 0:03:00]} 2. g3 {[%clk 0:03:00]}  g6 {[%clk 0:03:00]} 3. Bg2 {[%clk 0:03:00]}  Bg7 {[%clk 0:03:01]} 4. O-O {[%clk 0:03:01]}  O-O {[%clk 0:03:02]} 5. c4 {[%clk 0:03:01]}  c5 {[%clk 0:03:02]} 6. d4 {[%clk 0:03:01]}  cxd4 {[%clk 0:03:03]} 7. Nxd4 {[%clk 0:03:02]}  Nc6 {[%clk 0:03:03]} 8. Nc2 {[%clk 0:03:01]}  b6 {[%clk 0:03:01]} 9. Nc3 {[%clk 0:03:01]}  Bb7 {[%clk 0:03:01]} 10. b3 {[%clk 0:03:02]}  d6 {[%clk 0:02:53]} 11. Bb2 {[%clk 0:03:01]}  h5 {[%clk 0:02:51]} 12. Ne3 {[%clk 0:03:00]}  h4 {[%clk 0:02:51]} 13. Qd2 {[%clk 0:02:58]}  Qc8 {[%clk 0:02:48]} 14. Ned5 {[%clk 0:02:54]}  h3 {[%clk 0:02:46]} 15. Bh1 {[%clk 0:02:43]}  Re8 {[%clk 0:02:46]} 16. Nxf6+ {[%clk 0:02:39]}  Bxf6 {[%clk 0:02:47]} 17. Nd5 {[%clk 0:02:38]}  Bxb2 {[%clk 0:02:44]} 18. Qxb2 {[%clk 0:02:39]}  Ne5 {[%clk 0:02:44]} 19. Rac1 {[%clk 0:02:17]}  Bxd5 {[%clk 0:02:41]} 20. Bxd5 {[%clk 0:02:12]}  Rb8 {[%clk 0:02:39]} 21. Qd4 {[%clk 0:02:03]}  e6 {[%clk 0:02:28]} 22. Bh1 {[%clk 0:02:01]}  Rd8 {[%clk 0:02:28]} 23. Qh4 {[%clk 0:01:56]}  Kg7 {[%clk 0:02:18]} 24. Qxh3 {[%clk 0:01:49]}  Qc5 {[%clk 0:02:10]} 25. Qg2 {[%clk 0:01:48]}  Rbc8 {[%clk 0:02:05]} 26. Rcd1 {[%clk 0:01:37]}  b5 {[%clk 0:02:03]} 27. cxb5 {[%clk 0:01:35]}  Qxb5 {[%clk 0:02:04]} 28. Qe4 {[%clk 0:01:29]}  f5 {[%clk 0:01:49]} 29. Qh4 {[%clk 0:01:21]}  Qxe2 {[%clk 0:01:39]} 30. Qe7+ {[%clk 0:01:20]}  Nf7 {[%clk 0:01:39]} 31. Rde1 {[%clk 0:01:10]}  Qb2 {[%clk 0:01:29]} 32. Rxe6 {[%clk 0:01:09]}  Re8 {[%clk 0:01:24]} 33. Qd7 {[%clk 0:01:00]}  Rcd8 {[%clk 0:01:16]} 34. Qxe8 {[%clk 0:00:57]}  Rxe8 {[%clk 0:01:17]} 35. Rxe8 {[%clk 0:00:58]}  Qxa2 {[%clk 0:01:18]} 36. Rb8 {[%clk 0:00:58]}  Ne5 {[%clk 0:01:14]} 37. Rb7+ {[%clk 0:00:58]}  Kf6 {[%clk 0:01:14]} 38. h4 {[%clk 0:00:56]}  a5 {[%clk 0:01:13]} 39. Bg2 {[%clk 0:00:49]}  Qc2 {[%clk 0:01:03]} 40. Bd5 {[%clk 0:00:44]}  Qd3 {[%clk 0:00:54]} 41. Bg2 {[%clk 0:00:37]}  Ng4 {[%clk 0:00:51]} 42. Rd7 {[%clk 0:00:31]}  Ke6 {[%clk 0:00:47]} 43. Rb7 {[%clk 0:00:31]}  f4 {[%clk 0:00:44]} 44. Bh3 {[%clk 0:00:27]}  Qf3 {[%clk 0:00:34]} 45. Re1+ {[%clk 0:00:23]}  Kf6 {[%clk 0:00:32]} 46. Bxg4 {[%clk 0:00:18]}  Qxg4 {[%clk 0:00:33]} 47. Ree7 {[%clk 0:00:14]}  fxg3 {[%clk 0:00:29]} 48. Rf7+ {[%clk 0:00:14]}  Ke6 {[%clk 0:00:30]} 49. Rbe7+ {[%clk 0:00:14]}  Kd5 {[%clk 0:00:30]} 50. fxg3 {[%clk 0:00:14]}  Qxg3+ {[%clk 0:00:31]} 51. Kf1 {[%clk 0:00:14]}  Qxh4 {[%clk 0:00:27]} 52. Ra7 {[%clk 0:00:14]}  Qh1+ {[%clk 0:00:24]} 53. Ke2 {[%clk 0:00:14]}  Qe4+ {[%clk 0:00:23]} 54. Kd2 {[%clk 0:00:14]}  Qb4+ {[%clk 0:00:22]} 55. Kc2 {[%clk 0:00:14]}  g5 {[%clk 0:00:18]} 56. Rg7 {[%clk 0:00:15]}  Ke6 {[%clk 0:00:17]} 57. Rae7+ {[%clk 0:00:15]}  Kf5 {[%clk 0:00:16]} 58. Ref7+ {[%clk 0:00:15]}  Kg4 {[%clk 0:00:17]} 59. Rd7 {[%clk 0:00:12]}  Kh4 {[%clk 0:00:15]} 60. Rh7+ {[%clk 0:00:12]}  Kg3 {[%clk 0:00:15]} 61. Rdg7 {[%clk 0:00:13]}  g4 {[%clk 0:00:15]} 62. Kb2 {[%clk 0:00:12]}  a4 {[%clk 0:00:15]} 63. Kc2 {[%clk 0:00:10]}  axb3+ {[%clk 0:00:14]} 64. Kb2 {[%clk 0:00:10]}  Qc4 {[%clk 0:00:14]} 65. Rc7 {[%clk 0:00:09]}  Qa4 {[%clk 0:00:13]} 66. Ra7 {[%clk 0:00:09]}  Qd4+ {[%clk 0:00:12]} 67. Kxb3 {[%clk 0:00:09]}  Kf3 {[%clk 0:00:13]} 68. Rhf7+ {[%clk 0:00:09]}  Kg2 {[%clk 0:00:12]} 69. Rg7 {[%clk 0:00:09]}  g3 {[%clk 0:00:13]} 70. Raf7 {[%clk 0:00:10]}  d5 {[%clk 0:00:12]} 71. Rh7 {[%clk 0:00:09]}  Qc4+ {[%clk 0:00:13]} 72. Kb2 {[%clk 0:00:10]}  Kg1 {[%clk 0:00:13]} 73. Rfg7 {[%clk 0:00:10]}  Qd4+ {[%clk 0:00:13]} 74. Kc2 {[%clk 0:00:10]}  g2 {[%clk 0:00:14]} 75. Kb3 {[%clk 0:00:09]}  Qd3+ {[%clk 0:00:14]} 76. Kb4 {[%clk 0:00:09]}  Qd4+ {[%clk 0:00:13]} 77. Kb5 {[%clk 0:00:10]}  Qc4+ {[%clk 0:00:14]} 78. Kb6 {[%clk 0:00:10]}  d4 {[%clk 0:00:15]} 79. Rc7 {[%clk 0:00:08]}  Qb4+ {[%clk 0:00:15]} 80. Ka7 {[%clk 0:00:08]}  Qa3+ {[%clk 0:00:15]} 81. Kb6 {[%clk 0:00:08]}  d3 {[%clk 0:00:15]} 82. Rhd7 {[%clk 0:00:07]}  d2 {[%clk 0:00:15]} 83. Rxd2 {[%clk 0:00:07]}  Qb4+ {[%clk 0:00:15]} 84. Ka7 {[%clk 0:00:06]}  Qxd2 {[%clk 0:00:16]} 85. Rc8 {[%clk 0:00:06]}  Qf2+ {[%clk 0:00:16]} 86. Kb8 {[%clk 0:00:07]}  Kf1 {[%clk 0:00:17]} 87. Rc1+ {[%clk 0:00:07]}  Qe1 {[%clk 0:00:17]} 88. Rc7 {[%clk 0:00:06]}  g1=Q {[%clk 0:00:17]} 89. Rf7+ {[%clk 0:00:06]}  Qgf2 {[%clk 0:00:18]} 90. Rh7 {[%clk 0:00:06]}  Qe5+ {[%clk 0:00:17]} 91. Rc7 {[%clk 0:00:05]}  Qff4 {[%clk 0:00:15]} 92. Ka8 {[%clk 0:00:06]}  Qa5+ {[%clk 0:00:15]} 93. Kb7 {[%clk 0:00:06]}  Qfxc7# {[%clk 0:00:15]} 0-1


[Site "https://www.chess.com"]

[Event "Titled Tuesday Blitz November 15 Late 2022"]
[White "Foerster-Yialamas, Lucas"]
[Black "Riff, Vincent"]
[WhiteFideId "30901774"]
[BlackFideId "617776"]
[WhiteElo "2067"]
[BlackElo "2369"]
[Result "0-1"]
[Round "01"]
[TimeControl "180+1"]
[Date "2022.11.16"]
[WhiteClock "0:00:13"]
[BlackClock "0:00:43"]

1. e4 {[%clk 0:03:00]}  c5 {[%clk 0:02:57]} 2. Nf3 {[%clk 0:02:57]}  Nc6 {[%clk 0:02:57]} 3. b3 {[%clk 0:02:57]}  e5 {[%clk 0:02:54]} 4. Bb2 {[%clk 0:02:56]}  d6 {[%clk 0:02:53]} 5. c3 {[%clk 0:02:48]}  g6 {[%clk 0:02:53]} 6. d4 {[%clk 0:02:47]}  Bg7 {[%clk 0:02:48]} 7. d5 {[%clk 0:02:45]}  Nce7 {[%clk 0:02:48]} 8. Bb5+ {[%clk 0:02:38]}  Bd7 {[%clk 0:02:35]} 9. Bxd7+ {[%clk 0:02:38]}  Qxd7 {[%clk 0:02:36]} 10. c4 {[%clk 0:02:36]}  h6 {[%clk 0:02:35]} 11. Nc3 {[%clk 0:02:31]}  g5 {[%clk 0:02:32]} 12. g3 {[%clk 0:02:09]}  Nf6 {[%clk 0:02:31]} 13. Qe2 {[%clk 0:01:59]}  Ng6 {[%clk 0:02:24]} 14. O-O-O {[%clk 0:01:53]}  a6 {[%clk 0:02:23]} 15. h4 {[%clk 0:01:51]}  g4 {[%clk 0:02:22]} 16. Nd2 {[%clk 0:01:49]}  h5 {[%clk 0:02:21]} 17. Nf1 {[%clk 0:01:47]}  Bh6+ {[%clk 0:02:18]} 18. Kb1 {[%clk 0:01:44]}  O-O {[%clk 0:02:05]} 19. Bc1 {[%clk 0:01:43]}  Bxc1 {[%clk 0:02:02]} 20. Rxc1 {[%clk 0:01:44]}  b5 {[%clk 0:02:02]} 21. Ne3 {[%clk 0:01:42]}  bxc4 {[%clk 0:02:01]} 22. Qxc4 {[%clk 0:01:37]}  Ne7 {[%clk 0:01:58]} 23. Rcg1 {[%clk 0:01:24]}  Rfb8 {[%clk 0:01:43]} 24. Qd3 {[%clk 0:01:09]}  a5 {[%clk 0:01:39]} 25. Nc4 {[%clk 0:01:04]}  a4 {[%clk 0:01:39]} 26. Kb2 {[%clk 0:01:03]}  Rb4 {[%clk 0:01:18]} 27. f3 {[%clk 0:00:51]}  axb3 {[%clk 0:01:16]} 28. axb3 {[%clk 0:00:45]}  Rab8 {[%clk 0:01:14]} 29. Rb1 {[%clk 0:00:22]}  gxf3 {[%clk 0:01:05]} 30. Kc2 {[%clk 0:00:20]}  Ng4 {[%clk 0:00:59]} 31. Qxf3 {[%clk 0:00:19]}  f5 {[%clk 0:00:59]} 32. exf5 {[%clk 0:00:19]}  Nxf5 {[%clk 0:00:58]} 33. Qe4 {[%clk 0:00:16]}  Qh7 {[%clk 0:00:51]} 34. Rhf1 {[%clk 0:00:14]}  Nfe3+ {[%clk 0:00:51]} 35. Kd3 {[%clk 0:00:12]}  Qxe4+ {[%clk 0:00:41]} 36. Nxe4 {[%clk 0:00:11]}  Rxb3+ {[%clk 0:00:40]} 37. Rxb3 {[%clk 0:00:09]}  Rxb3+ {[%clk 0:00:41]} 38. Ke2 {[%clk 0:00:09]}  Nxf1 {[%clk 0:00:41]} 39. Kxf1 {[%clk 0:00:10]}  Ne3+ {[%clk 0:00:41]} 40. Nxe3 {[%clk 0:00:09]}  Rxe3 {[%clk 0:00:41]} 41. Nxd6 {[%clk 0:00:10]}  Rxg3 {[%clk 0:00:41]} 42. Nf5 {[%clk 0:00:10]}  Rf3+ {[%clk 0:00:42]} 43. Ke2 {[%clk 0:00:10]}  Rxf5 {[%clk 0:00:43]} 44. Ke3 {[%clk 0:00:10]}  Rf4 {[%clk 0:00:42]} 45. d6 {[%clk 0:00:10]}  Rd4 {[%clk 0:00:42]} 46. d7 {[%clk 0:00:11]}  Rxd7 {[%clk 0:00:42]} 47. Ke4 {[%clk 0:00:12]}  Rd4+ {[%clk 0:00:42]} 48. Kxe5 {[%clk 0:00:12]}  Rxh4 {[%clk 0:00:43]} 49. Kf5 {[%clk 0:00:13]}  Rg4 {[%clk 0:00:43]} 0-1


[Site "https://www.chess.com"]

[Event "Titled Tuesday Blitz November 15 Late 2022"]
[White "Girsh, Daniel"]
[Black "Pranav, V"]
[WhiteFideId "30949190"]
[BlackFideId "25060783"]
[WhiteElo "2075"]
[BlackElo "2430"]
[Result "0-1"]
[Round "01"]
[TimeControl "180+1"]
[Date "2022.11.15"]
[WhiteClock "0:01:39"]
[BlackClock "0:02:46"]

1. e4 {[%clk 0:02:59]}  e5 {[%clk 0:02:57]} 2. Nf3 {[%clk 0:02:59]}  Nc6 {[%clk 0:02:57]} 3. Bb5 {[%clk 0:03:00]}  a6 {[%clk 0:02:57]} 4. Ba4 {[%clk 0:03:00]}  d6 {[%clk 0:02:58]} 5. c3 {[%clk 0:03:00]}  Bd7 {[%clk 0:02:56]} 6. d4 {[%clk 0:02:58]}  g6 {[%clk 0:02:56]} 7. O-O {[%clk 0:02:58]}  Bg7 {[%clk 0:02:56]} 8. Re1 {[%clk 0:02:59]}  Nge7 {[%clk 0:02:55]} 9. Be3 {[%clk 0:02:56]}  O-O {[%clk 0:02:55]} 10. Nbd2 {[%clk 0:02:55]}  h6 {[%clk 0:02:55]} 11. Nf1 {[%clk 0:02:52]}  exd4 {[%clk 0:02:51]} 12. cxd4 {[%clk 0:02:52]}  Bg4 {[%clk 0:02:51]} 13. h3 {[%clk 0:02:26]}  Bxf3 {[%clk 0:02:50]} 14. gxf3 {[%clk 0:02:27]}  Kh7 {[%clk 0:02:48]} 15. Qd2 {[%clk 0:02:22]}  f5 {[%clk 0:02:48]} 16. exf5 {[%clk 0:02:01]}  Nxf5 {[%clk 0:02:47]} 17. Bxc6 {[%clk 0:01:59]}  bxc6 {[%clk 0:02:47]} 18. Rac1 {[%clk 0:01:50]}  Nh4 {[%clk 0:02:47]} 19. Nh2 {[%clk 0:01:50]}  Qd7 {[%clk 0:02:46]} 20. Kh1 {[%clk 0:01:40]}  Qxh3 {[%clk 0:02:45]} 21. Rg1 {[%clk 0:01:39]}  Nxf3 {[%clk 0:02:46]} 0-1


[Site "https://www.chess.com"]

[Event "Titled Tuesday Blitz November 15 Late 2022"]
[White "Gorodetzky, David"]
[Black "Bilan, Danila"]
[WhiteFideId "2813416"]
[BlackFideId "24161918"]
[WhiteElo "2497"]
[BlackElo "2173"]
[Result "1-0"]
[Round "01"]
[TimeControl "180+1"]
[Date "2022.11.16"]
[WhiteClock "0:02:04"]
[BlackClock "0:00:25"]

1. e4 {[%clk 0:02:50]}  c6 {[%clk 0:02:57]} 2. d4 {[%clk 0:02:48]}  d5 {[%clk 0:02:57]} 3. Nc3 {[%clk 0:02:48]}  dxe4 {[%clk 0:02:57]} 4. Nxe4 {[%clk 0:02:49]}  Bf5 {[%clk 0:02:58]} 5. Nc5 {[%clk 0:02:47]}  b6 {[%clk 0:02:42]} 6. Nb3 {[%clk 0:02:42]}  Nf6 {[%clk 0:02:38]} 7. Nf3 {[%clk 0:02:42]}  e6 {[%clk 0:02:38]} 8. c3 {[%clk 0:02:40]}  Bd6 {[%clk 0:02:35]} 9. a4 {[%clk 0:02:40]}  O-O {[%clk 0:02:25]} 10. a5 {[%clk 0:02:39]}  Nbd7 {[%clk 0:02:22]} 11. Be2 {[%clk 0:02:30]}  Qc7 {[%clk 0:02:19]} 12. O-O {[%clk 0:02:30]}  c5 {[%clk 0:02:06]} 13. dxc5 {[%clk 0:02:25]}  bxc5 {[%clk 0:01:48]} 14. h3 {[%clk 0:02:24]}  Rab8 {[%clk 0:01:41]} 15. Nbd2 {[%clk 0:02:23]}  Rfd8 {[%clk 0:01:33]} 16. Nc4 {[%clk 0:02:23]}  Bh2+ {[%clk 0:01:01]} 17. Nxh2 {[%clk 0:02:20]}  Ne5 {[%clk 0:00:55]} 18. Qa4 {[%clk 0:02:16]}  Nd3 {[%clk 0:00:51]} 19. Bxd3 {[%clk 0:02:05]}  Bxd3 {[%clk 0:00:51]} 20. Re1 {[%clk 0:02:05]}  Rd5 {[%clk 0:00:33]} 21. Nf3 {[%clk 0:02:05]}  h6 {[%clk 0:00:30]} 22. Nce5 {[%clk 0:02:05]}  Bf5 {[%clk 0:00:29]} 23. Qh4 {[%clk 0:02:05]}  Rbd8 {[%clk 0:00:25]} 24. Bxh6 {[%clk 0:02:04]} 1-0


[Site "https://www.chess.com"]

[Event "Titled Tuesday Blitz November 15 Late 2022"]
[White "Graif, William"]
[Black "Tari, Aryan"]
[WhiteFideId "2609835"]
[BlackFideId "1510045"]
[WhiteElo "2205"]
[BlackElo "2612"]
[Result "0-1"]
[Round "01"]
[TimeControl "180+1"]
[Date "2022.11.15"]
[WhiteClock "0:00:02"]
[BlackClock "0:00:46"]

1. d4 {[%clk 0:02:56]}  d5 {[%clk 0:02:41]} 2. e4 {[%clk 0:02:44]}  dxe4 {[%clk 0:02:40]} 3. Nc3 {[%clk 0:02:44]}  Nf6 {[%clk 0:02:40]} 4. Bg5 {[%clk 0:02:43]}  g6 {[%clk 0:02:32]} 5. f3 {[%clk 0:02:39]}  e3 {[%clk 0:02:31]} 6. Bxe3 {[%clk 0:02:34]}  Bg7 {[%clk 0:02:31]} 7. Qd2 {[%clk 0:02:31]}  O-O {[%clk 0:02:31]} 8. O-O-O {[%clk 0:02:30]}  a6 {[%clk 0:02:30]} 9. Bh6 {[%clk 0:02:18]}  b5 {[%clk 0:02:29]} 10. h4 {[%clk 0:02:08]}  c5 {[%clk 0:02:02]} 11. d5 {[%clk 0:01:23]}  Bf5 {[%clk 0:01:08]} 12. g4 {[%clk 0:00:56]}  b4 {[%clk 0:01:09]} 13. Nce2 {[%clk 0:00:39]}  Qxd5 {[%clk 0:01:03]} 14. Bxg7 {[%clk 0:00:11]}  Qxa2 {[%clk 0:01:03]} 15. Qh6 {[%clk 0:00:11]}  Qa1+ {[%clk 0:01:02]} 16. Kd2 {[%clk 0:00:11]}  Rd8+ {[%clk 0:01:03]} 17. Ke3 {[%clk 0:00:08]}  Qxd1 {[%clk 0:01:01]} 18. gxf5 {[%clk 0:00:07]}  Qxf1 {[%clk 0:00:53]} 19. fxg6 {[%clk 0:00:04]}  fxg6 {[%clk 0:00:48]} 20. Nh3 {[%clk 0:00:02]}  Nd5+ {[%clk 0:00:46]} 0-1


[Site "https://www.chess.com"]